bitfinex-derivatives/quotes_BTCF0:USTF0_20260113
["timestamp","ask_amount","ask_price","bid_price","bid_amount"]
[1768298466003,0.09410563,92347.0,92330.0,0.010841]
[1768298467306,0.010839,92348.0,92330.0,0.20576829]
[1768298467606,0.010839,92348.0,92331.0,0.09750063]
[1768298468497,0.09756,92349.0,92331.0,0.09750063]
[1768298468498,0.010839,92346.0,92331.0,0.09750063]
[1768298468697,0.010839,92346.0,92330.0,0.22762171]
[1768298469107,0.01084,92341.0,92330.0,0.09742666]
[1768298469408,0.01084,92339.0,92327.0,9.274e-05]
[1768298470104,0.01084,92337.0,92321.0,0.09750063]
[1768298470407,0.09756,92338.0,92321.0,0.10834263]
[1768298470609,0.09756,92337.0,92323.0,0.010842]
[1768298471108,8.637e-05,92336.0,92323.0,0.010842]
[1768298472512,8.637e-05,92336.0,92325.0,0.00141568]
[1768298473099,0.09764637,92336.0,92325.0,0.00141568]
[1768298473501,0.09764637,92336.0,92326.0,0.010841]
[1768298474406,0.010844,92305.0,92283.0,0.010846]
[1768298474596,0.13019505,92300.0,92283.0,0.010846]
[1768298474798,0.13019505,92300.0,92279.0,0.010847]
[1768298475104,0.13019505,92300.0,92286.0,0.00016248]
[1768298478603,0.13019505,92296.0,92276.0,0.09886708]
[1768298478803,9.274e-05,92295.0,92276.0,0.09886708]
[1768298479003,9.274e-05,92295.0,92280.0,0.13019505]
[1768298479410,9.274e-05,92295.0,92281.0,0.010847]
[1768298481712,9.274e-05,92295.0,92281.0,0.10971408]
[1768298482617,9.274e-05,92295.0,92277.0,0.010847]
[1768298482818,0.09797436,92295.0,92277.0,0.010847]
[1768298483206,0.09797436,92295.0,92280.0,0.010847]
[1768298483918,0.09797436,92295.0,92276.0,0.10971408]
[1768298484120,0.19070947,92295.0,92276.0,0.010847]
[1768298484814,0.09788162,92294.0,92276.0,0.010847]
[1768298485822,0.28821673,92294.0,92276.0,0.010847]
[1768298486021,0.09788162,92293.0,92276.0,0.010847]
[1768298487320,0.19061673,92293.0,92279.0,0.010847]
[1768298487708,0.09788162,92292.0,92279.0,0.010847]
[1768298488109,0.19061673,92290.0,92275.0,0.0109406]
[1768298488515,0.19061673,92289.0,92275.0,9.36e-05]
[1768298488717,0.09788162,92283.0,92268.0,0.00238437]
[1768298488916,0.09273511,92284.0,92268.0,0.00238437]
[1768298489117,0.09273511,92284.0,92272.0,0.010848]
[1768298489315,0.09273511,92289.0,92272.0,0.10971508]
[1768298489522,0.09788162,92291.0,92278.0,0.010847]
[1768298489914,0.09788162,92290.0,92278.0,0.010847]
[1768298490225,0.19061673,92290.0,92278.0,0.010847]
[1768298490522,0.09788162,92289.0,92278.0,0.010847]
[1768298491924,0.0976,92288.0,92278.0,0.010847]
[1768298492525,0.19033511,92288.0,92275.0,0.010847]
[1768298492723,0.19061673,92286.0,92269.0,0.010848]
[1768298492914,0.09788162,92284.0,92269.0,0.010848]
[1768298493224,0.09788162,92281.0,92268.0,0.00238437]
[1768298493421,0.19061673,92281.0,92268.0,0.00238437]
[1768298493621,0.09788162,92279.0,92268.0,0.01323237]
[1768298494026,0.09273511,92276.0,92261.0,0.0976]
[1768298494331,0.09273511,92276.0,92263.0,0.010849]
[1768298494332,0.09788162,92275.0,92263.0,0.010849]
[1768298494627,0.09788162,92274.0,92263.0,0.010849]
[1768298494814,0.09788162,92274.0,92265.0,0.010849]
[1768298495014,0.09273511,92275.0,92267.0,0.010848]
[1768298495221,0.09644764,92282.0,92262.0,0.18621211]
[1768298495429,0.09644764,92282.0,92275.0,0.010847]
[1768298495613,0.09644764,92282.0,92262.0,0.18621211]
[1768298495817,0.09644764,92282.0,92275.0,0.010847]
[1768298496326,0.09644764,92282.0,92267.0,0.010848]
[1768298496522,0.09644764,92282.0,92270.0,0.010848]
[1768298496829,0.09644764,92282.0,92262.0,0.09358983]
[1768298497728,0.09644764,92282.0,92270.0,0.010848]
[1768298497918,0.09644764,92279.0,92261.0,0.0976]
[1768298498114,0.09644764,92277.0,92261.0,0.0976]
[1768298498628,0.09644764,92276.0,92261.0,0.0976]
[1768298499019,0.09644764,92275.0,92261.0,0.0976]
[1768298499219,0.09644764,92275.0,92265.0,0.010849]
[1768298499533,0.09603755,92283.0,92271.0,0.010848]
[1768298499919,0.09603755,92283.0,92265.0,0.18621211]
[1768298499920,0.00026998,92283.0,92265.0,0.18621211]
[1768298500123,0.00026998,92283.0,92267.0,0.18621211]
[1768298500327,0.00026998,92283.0,92274.0,0.010848]
[1768298500630,0.00026998,92283.0,92263.0,0.09262228]
[1768298501130,0.00026998,92283.0,92267.0,0.010848]
[1768298501322,0.09671762,92283.0,92267.0,0.010848]
[1768298503836,0.09671762,92283.0,92261.0,0.19118983]
[1768298503837,0.09644764,92282.0,92264.0,0.010849]
[1768298504134,0.09644764,92270.0,92249.0,0.28385211]
[1768298504324,0.00013686,92269.0,92249.0,0.28385211]
[1768298504725,0.0965845,92269.0,92256.0,0.01085]
[1768298504928,0.00013686,92269.0,92261.0,0.010849]
[1768298505128,0.00013686,92269.0,92258.0,0.010849]
[1768298505521,0.0965845,92269.0,92257.0,0.01085]
[1768298505721,0.09644764,92268.0,92257.0,0.01085]
[1768298506138,0.09644764,92267.0,92254.0,0.01085]
[1768298506329,0.09644764,92267.0,92256.0,0.01085]
[1768298507132,0.19221521,92266.0,92252.0,0.01085]
[1768298507338,0.00013686,92269.0,92250.0,0.18621211]
[1768298507537,0.00013686,92269.0,92257.0,0.01085]
[1768298508539,0.00013686,92269.0,92253.0,0.01085]
[1768298509839,0.00013686,92269.0,92255.0,0.01085]
[1768298511044,0.00013686,92269.0,92252.0,0.09358983]
[1768298511242,0.00013686,92269.0,92252.0,0.18621211]
[1768298512538,0.00013686,92269.0,92255.0,0.01085]
[1768298515254,0.00013686,92269.0,92265.0,0.0054192]
[1768298515449,0.09576757,92286.0,92266.0,0.09262228]
[1768298515652,0.09764,92290.0,92269.0,0.09262228]
[1768298515855,0.09764,92290.0,92271.0,0.010848]
[1768298516356,0.010846,92291.0,92273.0,0.010848]
[1768298516558,4.948e-05,92282.0,92273.0,0.010848]
[1768298520450,0.010846,92291.0,92274.0,0.09262228]
[1768298520652,0.02623383,92290.0,92278.0,0.010847]
[1768298520853,0.02623383,92289.0,92278.0,0.010847]
[1768298521059,0.10186449,92305.0,92284.0,0.09262228]
[1768298521255,0.00541685,92305.0,92289.0,0.18621211]
[1768298521951,0.00541685,92305.0,92293.0,0.010845]
[1768298522153,0.00541685,92305.0,92290.0,0.18621211]
[1768298522861,0.00541685,92305.0,92291.0,0.010846]
[1768298523962,0.00541685,92305.0,92294.0,0.010845]
[1768298525252,0.00541685,92305.0,92291.0,0.19058709]
[1768298525464,0.00541685,92305.0,92294.0,0.010845]
[1768298526361,0.09576757,92313.0,92295.0,0.010845]
[1768298527161,0.08637875,92329.0,92302.0,0.09396475]
[1768298527162,0.09697313,92322.0,92302.0,0.09396475]
[1768298527352,0.09697313,92322.0,92304.0,0.09396475]
[1768298527555,0.19461313,92330.0,92313.0,0.010843]
[1768298527753,0.19461313,92330.0,92310.0,0.19058709]
[1768298528362,0.09697313,92330.0,92310.0,0.19058709]
[1768298529365,0.09697313,92330.0,92311.0,0.010843]
[1768298530359,0.0959732,92331.0,92311.0,0.20143009]
[1768298531360,0.10781413,92334.0,92313.0,0.20143009]
[1768298531760,0.10781413,92334.0,92315.0,0.09396475]
[1768298531961,0.10781413,92334.0,92316.0,0.010843]
[1768298532552,0.0959732,92337.0,92316.0,0.20143009]
[1768298532756,0.10848,92338.0,92320.0,0.19058709]
[1768298533065,0.01084,92336.0,92320.0,0.19058709]
[1768298533258,0.02575422,92335.0,92320.0,0.09662234]
[1768298533459,0.02575422,92334.0,92320.0,0.09662234]
[1768298533660,0.09764,92338.0,92320.0,0.09662234]
[1768298533661,0.02575422,92333.0,92320.0,0.09662234]
[1768298533966,0.01084,92337.0,92320.0,0.09662234]
[1768298534362,0.10781313,92337.0,92320.0,0.09662234]
[1768298534558,0.10781313,92337.0,92316.0,0.09396475]
[1768298535171,0.10691313,92337.0,92317.0,0.010843]
[1768298535356,0.09697313,92337.0,92321.0,0.010842]
[1768298535558,0.09764,92338.0,92321.0,0.010842]
[1768298535870,0.21333762,92345.0,92324.0,0.10279078]
[1768298536167,0.02573157,92344.0,92324.0,0.19528873]
[1768298536367,0.03657157,92343.0,92324.0,0.19528873]
[1768298536568,0.01084,92343.0,92324.0,0.19528873]
[1768298538169,0.11032411,92341.0,92321.0,0.09249795]
[1768298538370,0.20249862,92345.0,92325.0,0.010842]
[1768298539172,0.09948411,92344.0,92325.0,0.010842]
[1768298539371,0.13035422,92340.0,92325.0,0.10333995]
[1768298539780,0.00541451,92345.0,92330.0,0.14119522]
[1768298539972,0.00541451,92345.0,92331.0,0.18444673]
[1768298542383,0.00541451,92345.0,92332.0,0.18444673]
[1768298542582,0.00541451,92345.0,92333.0,0.18444673]
[1768298542785,0.00541451,92345.0,92335.0,0.18444673]
[1768298542984,0.13035422,92350.0,92335.0,0.18444673]
[1768298543882,0.14119322,92350.0,92335.0,0.18444673]
[1768298544286,0.14119322,92350.0,92335.0,0.09249795]
[1768298544785,0.010839,92348.0,92335.0,0.09249795]
[1768298545087,0.13035422,92350.0,92335.0,0.09249795]
[1768298545286,0.13035422,92350.0,92331.0,0.09194878]
[1768298545677,0.22983833,92350.0,92331.0,0.08794878]
[1768298545878,0.09948411,92349.0,92331.0,0.08794878]
[1768298546585,0.010839,92346.0,92331.0,0.08794878]
[1768298546786,0.010839,92346.0,92330.0,0.32045217]
[1768298547488,0.010839,92346.0,92330.0,0.33129317]
[1768298547688,0.14119322,92350.0,92336.0,0.09194878]
[1768298547888,0.14119322,92350.0,92337.0,0.09249795]
[1768298548183,0.14119322,92350.0,92338.0,0.09194878]
[1768298548578,0.14119322,92350.0,92337.0,0.09249795]
[1768298548887,0.14119322,92350.0,92333.0,0.010841]
[1768298548888,0.13035422,92350.0,92338.0,0.18444673]
[1768298549084,0.0976,92352.0,92338.0,0.18444673]
[1768298549286,0.13035422,92350.0,92338.0,0.18444673]
[1768298549483,0.0976,92352.0,92338.0,0.18444673]
[1768298549684,0.13035422,92350.0,92338.0,0.18444673]
[1768298549986,0.13035422,92350.0,92338.0,0.09249795]
[1768298550989,0.010839,92349.0,92334.0,0.09194878]
[1768298551190,0.010839,92349.0,92335.0,0.09194878]
[1768298551392,0.010838,92353.0,92340.0,0.18444673]
[1768298551578,0.010838,92353.0,92343.0,0.18444673]
[1768298551579,0.0250531,92352.0,92343.0,0.18444673]
[1768298551775,0.010838,92353.0,92343.0,0.18444673]
[1768298552289,0.02505825,92352.0,92343.0,0.09249795]
[1768298552481,0.010838,92353.0,92343.0,0.09249795]
[1768298552683,0.14119222,92353.0,92343.0,0.09249795]
[1768298552986,0.14119222,92353.0,92330.0,0.22795422]
[1768298552987,0.010839,92348.0,92337.0,0.09249795]
[1768298553386,0.010839,92348.0,92331.0,0.09933895]
[1768298553688,0.010839,92348.0,92331.0,0.19128773]
[1768298555092,0.010839,92348.0,92332.0,0.18733364]
[1768298556694,0.010839,92348.0,92333.0,0.18733364]
[1768298557686,0.13035422,92350.0,92334.0,0.010841]
[1768298557885,0.02509859,92349.0,92334.0,0.10446006]
[1768298558086,0.02509859,92348.0,92334.0,0.19817464]
[1768298558281,0.02510406,92347.0,92334.0,0.19817464]
[1768298558486,0.13035422,92350.0,92334.0,0.19817464]
[1768298558682,0.02510406,92349.0,92334.0,0.19817464]
[1768298558898,0.02510406,92348.0,92334.0,0.19817464]
[1768298559098,0.02510406,92347.0,92334.0,0.19817464]
[1768298559295,0.02511089,92346.0,92334.0,0.19817464]
[1768298559598,0.14119322,92350.0,92335.0,0.09361906]
[1768298559797,0.02511132,92349.0,92335.0,0.09361906]
[1768298560096,0.02511132,92348.0,92335.0,0.09361906]
[1768298560293,0.02511132,92347.0,92335.0,0.09361906]
[1768298560501,0.02511132,92346.0,92335.0,0.09361906]
[1768298560698,0.010839,92349.0,92335.0,0.09361906]
[1768298560897,0.0251155,92348.0,92335.0,0.09361906]
[1768298561104,0.0251155,92347.0,92335.0,0.08961906]
[1768298561304,0.0251155,92346.0,92335.0,0.08961906]
[1768298561604,0.0251155,92345.0,92335.0,0.08961906]
[1768298561789,0.010839,92349.0,92335.0,0.08961906]
[1768298561989,0.010839,92347.0,92335.0,0.08961906]
[1768298562186,0.02512064,92346.0,92335.0,0.08961906]
[1768298563102,0.02512064,92346.0,92335.0,0.18333364]
[1768298563996,0.02512064,92345.0,92335.0,0.18333364]
[1768298564200,0.14119322,92350.0,92335.0,0.18333364]
[1768298564503,0.02513335,92349.0,92335.0,0.18333364]
[1768298564798,0.02513335,92348.0,92336.0,0.10445906]
[1768298565003,0.010838,92356.0,92344.0,0.09371458]
[1768298565300,0.010838,92354.0,92344.0,0.09291458]
[1768298566996,0.01322005,92358.0,92344.0,0.09291458]
[1768298567198,0.00541334,92365.0,92348.0,0.09361906]
[1768298567396,0.00541334,92365.0,92356.0,0.18733364]
[1768298567597,0.00541334,92365.0,92356.0,0.12876337]
[1768298568391,0.010837,92364.0,92351.0,0.09371458]
[1768298569194,0.010837,92364.0,92351.0,0.08871458]
[1768298569599,0.010837,92364.0,92352.0,0.09361906]
[1768298570206,0.010837,92361.0,92352.0,0.09361906]
[1768298570407,0.010837,92361.0,92344.0,0.09361906]
[1768298570605,0.010838,92357.0,92343.0,0.0976]
[1768298570906,0.09068807,92353.0,92334.0,0.09756]
[1768298571099,0.01084,92341.0,92332.0,0.19117906]
[1768298572305,0.13035422,92350.0,92332.0,0.19117906]
[1768298572306,0.01084,92339.0,92332.0,0.19117906]
[1768298573308,0.01084,92336.0,92332.0,0.19117906]
[1768298573510,0.01084,92336.0,92333.0,0.09371458]
[1768298573711,0.01084,92336.0,92328.0,0.18733364]
[1768298574300,0.01084,92336.0,92329.0,0.09361906]
[1768298574611,0.01084,92336.0,92329.0,0.18733364]
[1768298575204,0.01084,92338.0,92331.0,0.18733364]
[1768298576615,0.01034,92338.0,92331.0,0.18733364]
[1768298577014,0.01084,92342.0,92332.0,0.09371458]
[1768298579219,0.01084,92342.0,92332.0,0.18733364]
[1768298580110,0.01084,92340.0,92332.0,0.18733364]
[1768298580315,0.010841,92331.0,92328.0,8.2e-07]
[1768298580505,0.010841,92327.0,92325.0,5e-07]
[1768298580704,0.13035422,92335.0,92325.0,5e-07]
[1768298580905,0.02427374,92334.0,92325.0,5e-07]
[1768298581101,0.14119522,92335.0,92325.0,5e-07]
[1768298581305,0.010841,92333.0,92325.0,5e-07]
[1768298582512,0.13035422,92335.0,92325.0,5e-07]
[1768298582717,0.14119422,92335.0,92325.0,5e-07]
[1768298583318,0.01084,92335.0,92325.0,5e-07]
[1768298584320,0.010841,92333.0,92325.0,5e-07]
[1768298584621,0.010841,92331.0,92325.0,5e-07]
[1768298584823,0.010841,92331.0,92322.0,0.06761956]
[1768298585622,0.010841,92331.0,92318.0,0.09371458]
[1768298586231,0.14119522,92332.0,92319.0,0.010842]
[1768298586423,0.13035422,92330.0,92319.0,0.010842]
[1768298586723,0.010841,92332.0,92319.0,0.10630347]
[1768298587621,0.09756,92339.0,92319.0,0.09546147]
[1768298587820,0.01084,92338.0,92325.0,0.010842]
[1768298588123,0.09756,92339.0,92325.0,0.010842]
[1768298588124,0.01084,92336.0,92325.0,0.09546147]
[1768298588332,0.010841,92334.0,92325.0,0.09546147]
[1768298588629,0.010841,92334.0,92321.0,0.19373464]
[1768298588810,0.010841,92332.0,92322.0,0.09546147]
[1768298589007,0.010841,92331.0,92322.0,0.09546147]
[1768298589415,0.010841,92334.0,92322.0,0.09546147]
[1768298589619,0.010841,92332.0,92322.0,0.09546147]
[1768298589828,0.010841,92332.0,92298.0,0.07999107]
[1768298589829,0.09234773,92330.0,92298.0,0.07999107]
[1768298590123,0.13035422,92303.0,92285.0,0.00541803]
[1768298590312,0.09756,92302.0,92285.0,0.00541803]
[1768298590514,0.13035422,92300.0,92285.0,0.00541803]
[1768298591114,0.13035422,92300.0,92268.0,0.09994437]
[1768298591115,0.010845,92294.0,92278.0,0.010847]
[1768298591322,0.13035422,92290.0,92270.0,0.13035422]
[1768298591520,0.13035422,92290.0,92277.0,0.010847]
[1768298591825,0.0109329,92293.0,92270.0,0.13035422]
[1768298592132,0.010846,92289.0,92274.0,0.010848]
[1768298592423,0.0976,92292.0,92276.0,0.010847]
[1768298592725,0.0976,92292.0,92274.0,0.09546147]
[1768298593324,0.13035422,92290.0,92274.0,0.09546147]
[1768298593520,0.13035422,92290.0,92275.0,0.10630847]
[1768298594326,0.13035422,92290.0,92275.0,0.09546147]
[1768298594524,0.0976,92292.0,92277.0,0.09707611]
[1768298594726,0.0976,92292.0,92280.0,0.10792311]
[1768298595417,0.0976,92292.0,92280.0,0.09707611]
[1768298596827,0.13035422,92290.0,92280.0,0.09707611]
[1768298597420,0.13035422,92290.0,92280.0,0.08207611]
[1768298597928,0.0976,92292.0,92280.0,0.08207611]
[1768298598128,8.79e-05,92293.0,92281.0,0.09361489]
[1768298598321,0.08776152,92295.0,92291.0,0.09361489]
[1768298598521,0.010844,92305.0,92291.0,0.09361489]
[1768298598724,0.0976,92304.0,92291.0,0.09361489]
[1768298599319,0.13035422,92301.0,92287.0,0.010846]
[1768298599519,0.13035422,92301.0,92288.0,0.09707611]
[1768298600128,0.13035422,92301.0,92289.0,0.010846]
[1768298600527,0.09665773,92310.0,92294.0,0.010845]
[1768298600832,0.010844,92307.0,92293.0,0.09707611]
[1768298601131,0.010844,92307.0,92291.0,0.010846]
[1768298601631,0.0976,92306.0,92293.0,0.010845]
[1768298603520,0.0976,92306.0,92295.0,0.010845]
[1768298603831,0.0976,92306.0,92297.0,0.010845]
[1768298604320,0.010843,92312.0,92297.0,0.010845]
[1768298604629,0.0976,92305.0,92297.0,0.010845]
[1768298605130,0.0976,92305.0,92292.0,0.08692111]
[1768298605533,0.0976,92305.0,92297.0,0.010845]
[1768298606620,0.0976,92304.0,92298.0,0.010845]
[1768298606828,0.0976,92304.0,92292.0,0.08692111]
[1768298606829,0.0976,92304.0,92295.0,0.010845]
[1768298607030,0.010843,92310.0,92297.0,0.010845]
[1768298607231,0.0976,92309.0,92297.0,0.010845]
[1768298607632,0.0976,92308.0,92297.0,0.010845]
[1768298608822,0.0976,92308.0,92292.0,0.08692111]
[1768298609023,0.0976,92308.0,92292.0,0.09776611]
[1768298610431,0.19101083,92311.0,92300.0,0.010845]
[1768298610634,0.0976,92310.0,92300.0,0.010845]
[1768298610828,0.0943531,92315.0,92294.0,0.09707611]
[1768298611027,0.627083,92314.0,92297.0,0.09707611]
[1768298611223,0.627083,92314.0,92301.0,0.010844]
[1768298611429,0.81809383,92314.0,92301.0,0.010844]
[1768298611729,0.19101083,92313.0,92301.0,0.010844]
[1768298612235,0.20185383,92313.0,92301.0,0.010844]
[1768298612534,0.00541685,92305.0,92293.0,0.09707611]
[1768298612730,0.00541685,92305.0,92300.0,0.010845]
[1768298612921,0.00541685,92305.0,92293.0,0.08292111]
[1768298613526,0.00541685,92305.0,92300.0,0.010845]
[1768298614231,0.05831793,92319.0,92294.0,0.09361489]
[1768298614232,0.0976,92308.0,92294.0,0.09361489]
[1768298614431,0.0976,92308.0,92289.0,0.010846]
[1768298614432,0.0976,92308.0,92304.0,0.010844]
[1768298615236,0.0976,92311.0,92304.0,0.010844]
[1768298615628,0.010843,92316.0,92304.0,0.010844]
[1768298615823,0.0976,92313.0,92304.0,0.010844]
[1768298616240,0.0976,92313.0,92305.0,0.010844]
[1768298619339,0.02540683,92312.0,92305.0,0.010844]
[1768298619537,0.0976,92313.0,92305.0,0.010844]
[1768298619741,0.02540685,92312.0,92305.0,0.010844]
[1768298620042,0.09665773,92317.0,92305.0,0.010844]
[1768298620235,0.12300598,92316.0,92305.0,0.010844]
[1768298620436,0.02540598,92315.0,92305.0,0.010844]
[1768298620742,0.02540598,92314.0,92299.0,0.08912444]
[1768298620941,0.02540598,92313.0,92296.0,0.010845]
[1768298621138,0.01105283,92337.0,92224.0,0.30820644]
[1768298621139,0.09556268,92323.0,92313.0,0.010843]
[1768298621339,0.0976,92321.0,92315.0,0.010843]
[1768298621842,0.01084,92340.0,92325.0,0.010842]
[1768298622140,0.0976,92341.0,92330.0,0.010841]
[1768298622342,0.18952703,92347.0,92323.0,0.09449377]
[1768298622642,0.0976,92344.0,92332.0,0.010841]
[1768298622846,0.0976,92344.0,92334.0,0.010841]
[1768298623045,0.18952703,92347.0,92334.0,0.010841]
[1768298623046,0.10301451,92345.0,92334.0,0.010841]
[1768298623440,0.00541451,92345.0,92334.0,0.010841]
[1768298625245,5.1e-07,92345.0,92340.0,0.01084]
[1768298625449,0.0976,92351.0,92340.0,0.01084]
[1768298625652,0.08364615,92351.0,92340.0,0.01084]
[1768298625840,0.09556268,92357.0,92340.0,0.09528044]
[1768298626150,0.0976,92356.0,92340.0,0.09528044]
[1768298626446,0.0976,92356.0,92343.0,0.010839]
[1768298626839,0.0976,92355.0,92343.0,0.010839]
[1768298627034,0.18952703,92357.0,92343.0,0.010839]
[1768298627243,0.0976,92356.0,92343.0,0.010839]
[1768298627853,0.0976,92356.0,92345.0,0.010839]
[1768298628251,0.18952703,92357.0,92345.0,0.010839]
[1768298628545,0.0976,92356.0,92345.0,0.010839]
[1768298629341,0.0976,92356.0,92345.0,0.006839]
[1768298630740,0.00238205,92358.0,92344.0,0.010839]
[1768298630741,0.18952703,92355.0,92344.0,0.010839]
[1768298630947,0.0976,92354.0,92344.0,0.010839]
[1768298631146,0.0976,92354.0,92336.0,0.09528044]
[1768298631337,0.0976,92354.0,92330.0,0.010841]
[1768298631338,0.18952703,92345.0,92330.0,0.010841]
[1768298631537,0.18952703,92345.0,92323.0,0.09449377]
[1768298631538,0.18952703,92343.0,92332.0,0.010841]
[1768298631741,0.18952703,92343.0,92323.0,0.09449377]
[1768298631742,0.18952703,92343.0,92336.0,0.01084]
[1768298631941,0.18952703,92343.0,92335.0,0.01084]
[1768298632152,0.18952703,92343.0,92324.0,0.09528044]
[1768298632755,0.18952703,92343.0,92335.0,0.01084]
[1768298633352,0.18952703,92343.0,92324.0,0.09528044]
[1768298634047,0.18952703,92343.0,92323.0,0.09449377]
[1768298634048,0.18952703,92342.0,92322.0,0.010842]
[1768298634256,0.18952703,92342.0,92334.0,0.01084]
[1768298634546,0.18952703,92342.0,92322.0,0.010842]
[1768298634757,0.18952703,92342.0,92322.0,0.10612244]
[1768298635139,0.18952703,92342.0,92335.0,0.01084]
[1768298635343,0.18952703,92342.0,92322.0,0.10612244]
[1768298635945,0.18952703,92342.0,92335.0,0.01084]
[1768298636145,0.18952703,92342.0,92322.0,0.10612244]
[1768298637252,0.0976,92344.0,92330.0,0.09528044]
[1768298637457,0.00238205,92358.0,92334.0,0.010841]
[1768298637654,0.0976,92357.0,92349.0,0.010539]
[1768298637955,0.0976,92357.0,92346.0,0.010839]
[1768298639345,0.09396435,92356.0,92346.0,0.010839]
[1768298639545,0.09396435,92355.0,92346.0,0.010839]
[1768298640657,0.09396435,92355.0,92344.0,0.010839]
[1768298640859,0.09396435,92355.0,92346.0,0.010839]
[1768298641546,0.09396435,92355.0,92337.0,0.01084]
[1768298642257,0.0976,92357.0,92343.0,0.010839]
[1768298642258,0.09396435,92353.0,92343.0,0.010839]
[1768298642458,0.18952703,92349.0,92336.0,0.01084]
[1768298642659,0.09396435,92347.0,92329.0,0.09449377]
[1768298643459,0.09396435,92347.0,92338.0,0.01084]
[1768298643757,0.09396435,92347.0,92336.0,0.01084]
[1768298644860,0.09396435,92347.0,92329.0,0.09449377]
[1768298645363,0.09366435,92347.0,92329.0,0.09449377]
[1768298646450,0.09366435,92347.0,92338.0,0.01084]
[1768298646645,0.09366435,92347.0,92329.0,0.09449377]
[1768298647654,0.09366435,92347.0,92339.0,0.01084]
[1768298648764,0.09366435,92347.0,92336.0,0.01084]
[1768298649466,0.09050671,92346.0,92336.0,0.01084]
[1768298650156,0.09050671,92340.0,92330.0,0.010841]
[1768298650361,0.18642959,92338.0,92326.0,0.00016248]
[1768298650555,0.18642959,92338.0,92325.0,0.00541568]
[1768298650556,0.18642959,92333.0,92322.0,0.010842]
[1768298650755,0.09050671,92332.0,92321.0,0.0976]
[1768298651154,0.09050671,92332.0,92316.0,0.010843]
[1768298651556,0.09050671,92332.0,92326.0,0.010841]
[1768298651857,0.09050671,92332.0,92316.0,0.010843]
[1768298651858,0.09050671,92332.0,92327.0,0.010841]
[1768298652058,0.09050671,92332.0,92314.0,0.08424299]
[1768298652365,0.09050671,92332.0,92326.0,0.010841]
[1768298652559,0.09050671,92330.0,92314.0,0.08424299]
[1768298652768,7.1e-07,92328.0,92314.0,0.08424299]
[1768298653155,7.1e-07,92328.0,92314.0,0.09508599]
[1768298653655,8.8e-07,92327.0,92324.0,0.010842]
[1768298653856,7.1e-07,92328.0,92324.0,0.010842]
[1768298654662,0.00016248,92330.0,92324.0,0.010842]
[1768298657576,0.00016248,92330.0,92324.0,0.010042]
[1768298659673,0.00016248,92330.0,92316.0,0.17078886]
[1768298659863,0.00016248,92330.0,92322.0,0.010842]
[1768298660771,0.00016248,92330.0,92316.0,0.17078886]
[1768298660971,0.00016248,92330.0,92322.0,0.010842]
[1768298662977,0.00016248,92330.0,92323.0,0.010842]
[1768298663581,4.8e-07,92330.0,92321.0,0.0996545]
[1768298663871,0.09756,92334.0,92323.0,0.19474686]
[1768298664072,0.01084,92343.0,92329.0,0.010841]
[1768298664274,0.00541451,92345.0,92333.0,0.0996545]
[1768298664466,0.00541451,92345.0,92333.0,0.19474686]
[1768298664667,0.00541451,92345.0,92336.0,0.01084]
[1768298665866,0.00541451,92345.0,92337.0,0.01084]
[1768298666372,0.00461451,92345.0,92337.0,0.01084]
[1768298667276,0.0976,92347.0,92338.0,0.01084]
[1768298667577,0.010839,92349.0,92334.0,0.18758686]
[1768298667777,0.13035966,92350.0,92334.0,0.18758686]
[1768298667978,0.0976,92349.0,92334.0,0.18758686]
[1768298668271,0.0976,92348.0,92334.0,0.18758686]
[1768298668580,0.13035966,92350.0,92334.0,0.18758686]
[1768298669274,0.13035966,92350.0,92337.0,0.01084]
[1768298669475,0.0976,92349.0,92337.0,0.01084]
[1768298669777,0.0976,92348.0,92335.0,0.0996545]
[1768298669970,0.0976,92348.0,92340.0,0.01084]
[1768298670372,0.0976,92348.0,92338.0,0.01084]
[1768298670872,0.0976,92348.0,92335.0,0.0996545]
[1768298671178,0.13035966,92350.0,92340.0,0.01084]
[1768298671378,0.09756,92349.0,92340.0,0.01084]
[1768298671578,0.010838,92354.0,92340.0,0.01084]
[1768298671773,0.09801131,92355.0,92338.0,0.01084]
[1768298671774,0.108398,92353.0,92338.0,0.01084]
[1768298671975,0.13035966,92350.0,92338.0,0.01084]
[1768298672681,0.13035966,92350.0,92339.0,0.01084]
[1768298672879,0.108398,92353.0,92339.0,0.01084]
[1768298674278,0.13035966,92350.0,92339.0,0.01084]
[1768298674882,0.13035966,92350.0,92335.0,0.0996545]
[1768298674883,0.13035966,92350.0,92341.0,0.01084]
[1768298675274,0.13035966,92350.0,92335.0,0.0944945]
[1768298675477,0.09756,92349.0,92335.0,0.0944945]
[1768298675678,0.09756,92349.0,92342.0,0.01084]
[1768298675879,0.09756,92348.0,92342.0,0.01084]
[1768298676291,0.09756,92348.0,92339.0,0.01084]
[1768298676687,0.09756,92348.0,92335.0,0.0944945]
[1768298676982,0.09756,92352.0,92344.0,0.010839]
[1768298677675,0.09756,92352.0,92341.0,0.01084]
[1768298677877,0.10969342,92357.0,92341.0,0.01084]
[1768298678280,0.19641542,92356.0,92341.0,0.01084]
[1768298678789,0.19641542,92356.0,92344.0,0.010839]
[1768298679289,0.09885542,92356.0,92344.0,0.010839]
[1768298679582,0.09756,92355.0,92344.0,0.010839]
[1768298680179,0.09756,92354.0,92344.0,0.010839]
[1768298680989,0.09756,92354.0,92340.0,0.22307149]
[1768298681488,0.010838,92356.0,92343.0,0.010839]
[1768298681681,0.09756,92353.0,92343.0,0.010839]
[1768298681981,0.010838,92356.0,92343.0,0.010839]
[1768298682186,0.09756,92352.0,92343.0,0.010839]
[1768298682585,0.09885542,92357.0,92340.0,0.22307149]
[1768298682887,0.108398,92356.0,92343.0,0.010839]
[1768298683774,0.09885542,92353.0,92333.0,0.09271183]
[1768298683976,0.10969442,92348.0,92334.0,0.010841]
[1768298684384,0.10969442,92348.0,92333.0,0.010841]
[1768298685384,0.010839,92348.0,92333.0,0.010841]
[1768298685580,0.13035966,92350.0,92332.0,0.09271183]
[1768298685782,0.010839,92347.0,92334.0,0.010841]
[1768298686176,0.14119866,92350.0,92334.0,0.010841]
[1768298686885,0.24005408,92350.0,92334.0,0.010841]
[1768298688002,0.24005408,92350.0,92332.0,0.08955283]
[1768298688387,0.24005408,92350.0,92334.0,0.010841]
[1768298688780,0.09656055,92358.0,92340.0,0.13035966]
[1768298688994,0.010838,92354.0,92340.0,0.13035966]
[1768298689489,0.10969342,92354.0,92340.0,0.13035966]